fUST/lending_fUST_20260219
["ID","MTS","AMOUNT","RATE_DAILY","PERIOD"]
[405994359,1771513840298,-2000.0,0.00015342,2]
[405994361,1771513840307,-2000.0,0.00015342,2]
[405994363,1771513840316,-2000.0,0.00015342,2]
[405994365,1771513840326,-456.35050886,0.00015342,2]
[405994367,1771513840336,-204.88503938,0.00015342,2]
[405994370,1771513840346,-555.8884954,0.00015342,2]
[405994371,1771513840361,-951.73950909,0.00015342,2]
[405994373,1771513840370,-2000.0,0.00015342,2]
[405994375,1771513840380,-2000.0,0.00015342,2]
[405994377,1771513840392,-450.0,0.00015342,2]
[405994380,1771513840403,-2000.0,0.00015342,2]
[405994381,1771513840412,-446.72689225,0.00015342,2]
[405994384,1771513840426,-2000.0,0.00015342,2]
[405994386,1771513840436,-2000.0,0.00015342,2]
[405994388,1771513840445,-2000.0,0.00015342,2]
[405994389,1771513840456,-1183.15468113,0.00015342,2]
[405994392,1771513840465,-2000.0,0.00015342,2]
[405994393,1771513840475,-2000.0,0.00015342,2]
[405994396,1771513840488,-2000.0,0.00015342,2]
[405994397,1771513840497,-511.40319057,0.00015342,2]
[405994399,1771513840507,-776.3852392,0.00015342,2]
[405994401,1771513840518,-2000.0,0.00015342,2]
[405994403,1771513840528,-163.81623082,0.00015342,2]
[405994405,1771513840538,-2000.0,0.00015342,2]
[405994407,1771513840549,-1756.7839229,0.00015342,2]
[405994409,1771513840559,-2000.0,0.00015342,2]
[405994411,1771513840569,-693.07881097,0.00015342,2]
[405994413,1771513840578,-500.0,0.00015464,2]
[405994415,1771513840587,-500.0,0.00015464,2]
[405994417,1771513840597,-2500.0,0.00015464,2]
[405994419,1771513840607,-2500.0,0.00015464,2]
[405994421,1771513840617,-2500.0,0.00015464,2]
[405994423,1771513840626,-217.44200242,0.00015464,2]
[405994425,1771513840636,-2500.0,0.00015464,2]
[405994427,1771513840646,-2500.0,0.00015464,2]
[405994429,1771513840655,-208.07100979,0.00015464,2]
[405994431,1771513840666,-2500.0,0.00015464,2]
[405994433,1771513840675,-933.49939567,0.00015464,2]
[405994435,1771513840685,-2500.0,0.00015464,2]
[405994437,1771513840694,-2500.0,0.00015464,2]
[405994439,1771513840704,-1883.66828347,0.00015464,2]
[405994441,1771513840713,-2500.0,0.00015464,2]
[405994443,1771513840723,-2500.0,0.00015464,2]
[405994445,1771513840732,-2500.0,0.00015464,2]
[405994447,1771513840742,-2500.0,0.00015464,2]
[405994450,1771513840751,-250.84133324,0.00015511,2]
[405994452,1771513840760,-262.526228,0.00015585,2]
[405994454,1771513840769,-5760.8331453,0.00015586,2]
[405994456,1771513840779,-681.959976,0.000156,2]
[405994458,1771513840788,-270.23195739,0.000156,2]
[405994460,1771513840797,-201.71575109,0.000156,2]
[405994462,1771513840807,-169.58,0.000156,2]
[405994464,1771513840817,-1624.6135852,0.000156,2]
[405994466,1771513840827,-3292.0,0.00015755,2]
[405994468,1771513840837,-487.0,0.0001576,2]
[405994470,1771513840847,-487.0,0.0001576,2]
[405994472,1771513840857,-487.0,0.0001576,2]
[405994474,1771513840869,-487.0,0.0001576,2]
[405994476,1771513840879,-519.86,0.0001576,2]
[405994478,1771513840888,-823.0,0.00015819,2]
[405994480,1771513840898,-1500.0,0.00015864,2]
[405994482,1771513840907,-1866.24760752,0.0001589,2]
[405994484,1771513840917,-2612.03499154,0.0001589,2]
[405994486,1771513840926,-1043.75593635,0.0001589,2]
[405994488,1771513840937,-2043.98701159,0.0001589,2]
[405994490,1771513840946,-2500.0,0.0001589,2]
[405994492,1771513840956,-352.36508368,0.0001589,2]
[405994494,1771513840966,-2500.0,0.0001589,2]
[405994496,1771513840976,-2500.0,0.0001589,2]
[405994498,1771513840985,-836.88081721,0.0001589,2]
[405994500,1771513840994,-2500.0,0.0001589,2]
[405994502,1771513841004,-2500.0,0.0001589,2]
[405994504,1771513841013,-2500.0,0.0001589,2]
[405994506,1771513841023,-2500.0,0.0001589,2]
[405994508,1771513841032,-2500.0,0.0001589,2]
[405994510,1771513841043,-2500.0,0.0001589,2]
[405994512,1771513841052,-777.03959549,0.0001589,2]
[405994514,1771513841061,-690.1103985,0.00015896,2]
[405994515,1771513841072,-151.0,0.000159,2]
[405994518,1771513841083,-151.0,0.00015951,4]
[405994520,1771513841093,-1794.34,0.00015963,2]
[405994522,1771513841102,-3384.8018361,0.00015993,2]
[405994523,1771513841112,-333.69771894,0.00016012,2]
[405994525,1771513841122,-3000.0,0.00016012,2]
[405994527,1771513841131,-3000.0,0.00016012,2]
[405994529,1771513841140,-3000.0,0.00016012,2]
[405994531,1771513841150,-3000.0,0.00016012,2]
[405994533,1771513841159,-829.84993741,0.00016012,2]
[405994535,1771513841168,-3000.0,0.00016012,2]
[405994537,1771513841177,-3000.0,0.00016012,2]
[405994539,1771513841186,-3000.0,0.00016012,2]
[405994541,1771513841195,-3000.0,0.00016012,2]
[405994543,1771513841204,-3000.0,0.00016012,2]
[405994545,1771513841213,-612.12899041,0.00016012,2]
[405994547,1771513841222,-151.0,0.000163,2]
[405994549,1771513841232,-1800.0,0.00016412,2]
[405994551,1771513841252,-150.0,0.00016438,2]
[405994553,1771513841274,-154.737612,0.00016438,2]
[405994555,1771513841287,-3000.0,0.00016438,2]
[405994557,1771513841300,-153.59515304,0.00016438,2]
[405994559,1771513841310,-597.98038219,0.00016438,2]
[405994561,1771513841320,-3000.0,0.00016438,2]
[405994563,1771513841330,-1068.70941397,0.00016438,2]
[405994565,1771513841339,-3000.0,0.00016438,2]
[405994567,1771513841351,-3000.0,0.00016438,2]
[405994568,1771513841361,-3000.0,0.00016438,2]
[405994570,1771513841370,-3000.0,0.00016438,2]
[405994572,1771513841380,-100000.0,0.00016488,2]
[405994574,1771513841391,-399.577241,0.0001656,2]
[405994576,1771513841400,-1006.38670905,0.0001656,2]
[405994578,1771513841409,-3500.0,0.0001656,2]
[405994580,1771513841420,-3500.0,0.0001656,2]
[405994582,1771513841429,-3500.0,0.0001656,2]
[405994584,1771513841439,-3500.0,0.0001656,2]
[405994586,1771513841449,-3500.0,0.0001656,2]
[405994588,1771513841459,-1360.47681245,0.0001656,2]
[405994590,1771513841468,-3500.0,0.0001656,2]
[405994592,1771513841478,-151.0,0.000168,2]
[405994594,1771513841487,-300.0,0.00016839,2]
[405994596,1771513841497,-214.143374,0.00016839,2]
[405994598,1771513841506,-2044.5857429,0.00016839,2]
[405994600,1771513841516,-291.8829195,0.00016839,2]
[405994602,1771513841525,-2100.0,0.0001696,2]
[405994604,1771513841534,-247.2398083,0.00016974,2]
[405994606,1771513841544,-354.33241908,0.00016986,2]
[405994608,1771513841554,-150.71150075,0.00016986,2]
[405994610,1771513841567,-3500.0,0.00016986,2]
[405994612,1771513841577,-3500.0,0.00016986,2]
[405994614,1771513841587,-1300.72412245,0.00016986,2]
[405994616,1771513841596,-3500.0,0.00016986,2]
[405994617,1771513841605,-3649.7054338,0.00016986,2]
[405994630,1771513841717,-3351.81902604,0.00017108,2]
[405994632,1771513841726,-4000.0,0.00017108,2]
[405994634,1771513841736,-3095.16084308,0.00017108,2]
[405994636,1771513841746,-4000.0,0.00017108,2]
[405994638,1771513841756,-2823.15008129,0.00017108,2]
[405994640,1771513841766,-1222.97801692,0.00017108,2]
[405994642,1771513841782,-2777.02198308,0.00017108,2]
[405994644,1771513841792,-151.0,0.000172,2]
[405994646,1771513841801,-4609.0,0.00017331,2]
[405994648,1771513841811,-1152.0,0.00017367,2]
[405994651,1771513841822,-5760.8331453,0.00017399,2]
[405994652,1771513841831,-151.0,0.00017423,5]
[405994654,1771513841840,-151.0,0.000175,2]
[405994656,1771513841849,-2400.0,0.00017508,2]
[405994658,1771513841858,-3003.30482113,0.00017534,2]
[405994660,1771513841868,-3679.22889862,0.00017534,2]
[405994662,1771513841878,-4000.0,0.00017534,2]
[405994664,1771513841887,-600.0,0.00017591,2]
[405994666,1771513841896,-500.0,0.00017591,2]
[405994668,1771513841906,-151.0,0.000176,2]
[405994669,1771513841915,-1115.79185446,0.00017656,2]
[405994670,1771513841926,-4500.0,0.00017656,2]
[405994671,1771513841935,-4158.53056558,0.00017656,2]
[405994672,1771513841945,-151.0,0.000177,2]
[405994673,1771513841954,-270.23195739,0.00017745,17]
[405994675,1771513841964,-150.0,0.00017808,2]
[405994677,1771513841973,-690.1103985,0.00017863,2]
[405994679,1771513841983,-500.0,0.00017937,2]
[405994681,1771513841992,-500.0,0.00017968,2]
[405994683,1771513842002,-3384.8018361,0.00017975,2]
[405994685,1771513842011,-70677.2351233,0.0001799,2]
[405994687,1771513842021,-8978.2318698,0.0001799,2]
[405994689,1771513842030,-609.67,0.0001799,2]
[405994690,1771513842040,-443.716737,0.00017991,2]
[405994692,1771513842050,-582.16393454,0.00017999,2]
[405994695,1771513842062,-6661.78173137,0.00017999,2]
[405994697,1771513842075,-500.0,0.0001801,2]
[405994699,1771513842084,-500.0,0.00018016,2]
[405994701,1771513842093,-84355.21258412,0.00018022,2]
[405994702,1771513842103,-2008.86656538,0.00018056,2]
[405994704,1771513842112,-4500.0,0.00018082,2]
[405994707,1771513842122,-500.0,0.0001815,2]
[405994709,1771513842132,-4277.58201077,0.00018204,2]
[405994710,1771513842141,-250.0,0.00018356,2]
[405994712,1771513842151,-151.0,0.000185,2]
[405994714,1771513842160,-5000.0,0.0001863,2]
[405994716,1771513842169,-500.0,0.00018681,2]
[405994718,1771513842179,-500.0,0.00018752,2]
[405994720,1771513842189,-350.0,0.00018904,2]
[405994722,1771513842198,-151.0,0.00018971,5]
[405994724,1771513842207,-23258.58222323,0.00019,2]
[405994726,1771513842216,-2934.93787891,0.00019,2]
[405994728,1771513842226,-500.0,0.00019041,2]
[405994730,1771513842236,-1270.0,0.00019064,2]
[405994732,1771513842245,-1613.0,0.00019066,2]
[405994734,1771513842255,-500.0,0.00019097,2]
[405994736,1771513842265,-500.0,0.00019135,2]
[405994738,1771513842274,-5500.0,0.00019178,2]
[405994740,1771513842283,-3277.49,0.000192,2]
[405994742,1771513842293,-611.4,0.000192,2]
[405994744,1771513842305,-151.0,0.000192,2]
[405994746,1771513842316,-168.98,0.000192,2]
[405994748,1771513842326,-166.37,0.000192,2]
[405994750,1771513842338,-450.0,0.00019452,2]
[405994752,1771513842348,-500.0,0.00019571,2]
[405994754,1771513842361,-534.66882458,0.00019595,2]
[405994756,1771513842371,-962.40388424,0.00019595,2]
[405994758,1771513842381,-1710.94023864,0.00019595,2]
[405994760,1771513842390,-2673.34412288,0.00019595,2]
[405994762,1771513842400,-3849.61553695,0.00019595,2]
[405994763,1771513842409,-5239.75448085,0.00019595,2]
[405994765,1771513842430,-6843.76095458,0.00019595,2]
[405994768,1771513842440,-8661.63495814,0.00019595,2]
[405994770,1771513842450,-10693.37649153,0.00019595,2]
[405994771,1771513842460,-500.0,0.00019645,2]
[405994773,1771513842469,-6000.0,0.00019726,2]
[405994775,1771513842479,-270.23195739,0.0001989,32]
[405994777,1771513842488,-3384.8018361,0.00019957,2]
[405994779,1771513842497,-500.0,0.0001998,2]
[405994781,1771513842507,-170.0,0.0002,10]
[405994783,1771513842516,-5102.80699958,0.0002,2]
[405994785,1771513842525,-151.67206477,0.0002,2]
[405994787,1771513842535,-259.11245023,0.0002,2]
[405994789,1771513842544,-1810.68231677,0.00020274,2]
[405994791,1771513842553,-500.0,0.00020287,2]
[405994793,1771513842563,-500.0,0.00020306,2]
[405994795,1771513842572,-179.77,0.00020492,2]
[405994797,1771513842581,-171.11812159,0.00020511,2]
[405994799,1771513842590,-684.47248634,0.00020511,2]
[405994801,1771513842599,-1540.06309427,0.00020511,2]
[405994803,1771513842611,-1616.591488,0.00020548,2]
[405994805,1771513842620,-15770.2227919,0.00020596,2]
[405994807,1771513842629,-151.0,0.00020597,6]
[405994809,1771513842639,-2258.0,0.00020931,2]
[405994811,1771513842648,-150.0,0.00021,2]
[405994813,1771513842658,-2737.88994537,0.0002102,2]
[405994815,1771513842667,-500.0,0.00021055,2]
[405994818,1771513842677,-231.64054628,0.00021146,2]
[405994820,1771513842686,-926.56218514,0.00021146,2]
[405994822,1771513842696,-2084.76491655,0.00021146,2]
[405994824,1771513842705,-3706.24874054,0.00021146,2]
[405994827,1771513842715,-2003.3143149,0.00021174,2]
[405994828,1771513842724,-3518.8123371,0.00021177,2]
[405994831,1771513842734,-500.0,0.00021276,2]
[405994833,1771513842744,-500.0,0.00021284,2]
[405994834,1771513842753,-500.0,0.00021396,2]
[405994836,1771513842763,-611.4,0.000214,2]
[405994838,1771513842772,-166.37,0.000214,2]
[405994840,1771513842781,-500.0,0.00021482,2]
[405994843,1771513842792,-500.0,0.00021538,2]
[405994845,1771513842801,-500.0,0.00021702,2]
[405994846,1771513842811,-500.0,0.00021721,2]
[405994849,1771513842820,-500.0,0.00021778,2]
[405994850,1771513842830,-500.0,0.00021826,2]
[405994852,1771513842840,-446.9998439,0.00021884,2]
[405994854,1771513842850,-211.905973,0.00021918,2]
[405994856,1771513842859,-211.905973,0.00021918,2]
[405994858,1771513842869,-211.905973,0.00021918,2]
[405994860,1771513842878,-211.905973,0.00021918,2]
[405994862,1771513842888,-211.905973,0.00021918,2]
[405994864,1771513842896,-211.905973,0.00021918,2]
[405994866,1771513842905,-211.905973,0.00021918,2]
[405994868,1771513842915,-211.905973,0.00021918,2]
[405994870,1771513842924,-211.905973,0.00021918,2]
[405994872,1771513842933,-211.905973,0.00021918,2]
[405994874,1771513842942,-211.905973,0.00021918,2]
[405994876,1771513842952,-211.905973,0.00021918,2]
[405994878,1771513842961,-211.905973,0.00021918,2]
[405994880,1771513842971,-211.905973,0.00021918,2]
[405994882,1771513842980,-211.905973,0.00021918,2]
[405994884,1771513842990,-211.905973,0.00021918,2]
[405994886,1771513842999,-211.905973,0.00021918,2]
[405994888,1771513843009,-211.905973,0.00021918,2]
[405994890,1771513843018,-211.905973,0.00021918,2]
[405994892,1771513843027,-211.905965,0.00021918,2]
[405994894,1771513843037,-150.0,0.00021918,2]
[405994896,1771513843046,-500.0,0.00021921,2]
[405994898,1771513843056,-499.3,0.00021926,2]
[405994900,1771513843065,-5791.0136571,0.00021959,2]
[405994902,1771513843075,-3277.49,0.00022,2]
[405994904,1771513843084,-284.06,0.00022,7]
[405994906,1771513843093,-270.23195739,0.00022036,48]
[405994908,1771513843102,-500.0,0.00022164,2]
[405994910,1771513843111,-500.0,0.00022299,2]
[405994912,1771513843121,-151.0,0.00022307,8]
[405994914,1771513843130,-300.0,0.00022466,2]
[405994916,1771513843140,-500.0,0.00022522,2]
[405994918,1771513843149,-4277.95303964,0.00022845,2]
[405994920,1771513843159,-1940.0,0.00022979,2]
[405994922,1771513843169,-157.11901119,0.00023014,2]
[405994924,1771513843179,-500.0,0.00023081,2]
[405994926,1771513843189,-500.0,0.000231,2]
[405994928,1771513843198,-500.0,0.00023133,2]
[405994930,1771513843208,-500.0,0.00023213,2]
[405994932,1771513843217,-500.0,0.00023531,2]
[405994934,1771513843227,-501.09702275,0.00023554,2]
[405994936,1771513843237,-647.59110955,0.00023729,2]
[405994938,1771513843246,-166.37,0.000239,7]
[405994940,1771513843256,-1382.0,0.00024066,2]
[405994942,1771513843266,-2172.0,0.00024066,2]
[405994944,1771513843276,-635.0,0.00024066,2]
[405994946,1771513843286,-284.06,0.000241,7]
[405994948,1771513843295,-151.0,0.00024105,10]
[405994950,1771513843305,-270.23195739,0.00024181,63]
[405994952,1771513843314,-500.0,0.00024198,2]
[405994954,1771513843325,-500.0,0.00024236,2]
[405994955,1771513843335,-500.0,0.00024237,2]
[405994957,1771513843344,-500.0,0.00024409,2]
[405994959,1771513843358,-168.0,0.00024507,2]
[405994961,1771513843367,-500.0,0.00024552,2]
[405994962,1771513843376,-499.682,0.00024572,2]
[405994963,1771513843386,-468.325,0.00024572,2]
[405994964,1771513843395,-725.0,0.00024572,2]
[405994965,1771513843405,-195.509,0.00024572,2]
[405994966,1771513843415,-1075.6164,0.0002465,2]
[405994967,1771513843427,-150.20442326,0.00024658,2]
[405994969,1771513843437,-200.0,0.00024658,2]
[405994971,1771513843446,-500.0,0.00024658,2]
[405994972,1771513843456,-168.0,0.00024665,2]
[405994974,1771513843465,-6160.25237708,0.0002467,2]
[405994976,1771513843474,-669.1336869,0.00024679,2]
[405994978,1771513843483,-596.07718047,0.00024685,2]
[405994980,1771513843492,-611.4,0.000247,14]
[405994981,1771513843502,-500.0,0.00024713,2]
[405994983,1771513843512,-318.0,0.00024724,2]
[405994985,1771513843522,-500.0,0.00024768,2]
[405994987,1771513843531,-318.0,0.00024807,2]
[405994989,1771513843540,-500.0,0.00024822,2]
[405994990,1771513843549,-500.0,0.00024877,2]
[405994991,1771513843558,-233525.040202,0.000249,2]
[405994992,1771513843567,-500.0,0.00024932,2]
[405994993,1771513843578,-500.0,0.00024987,2]
[405994994,1771513843587,-166.0,0.00025,7]
[405994995,1771513843596,-168.0,0.00025002,2]
[405994996,1771513843605,-500.0,0.00025042,2]
[405994997,1771513843614,-168.0,0.00025061,2]
[405994998,1771513843624,-318.0,0.0002509,7]
[405994999,1771513843632,-515.11955381,0.00025096,2]
[405995000,1771513843642,-3277.49,0.000251,2]
[405995001,1771513843651,-318.0,0.00025102,2]
[405995002,1771513843660,-319.0,0.00025287,2]
[405995003,1771513843669,-168.0,0.00025295,2]
[405995004,1771513843678,-318.0,0.0002532,2]
[405995005,1771513843687,-319.0,0.0002534,2]
[405995006,1771513843696,-168.0,0.00025431,2]
[405995007,1771513843704,-166.37,0.000255,7]
[405995008,1771513843713,-12290.7915896,0.00025506,2]
[405995009,1771513843723,-150.0,0.00025516,10]
[405995010,1771513843732,-500.0,0.00025516,10]
[405995011,1771513843741,-500.0,0.00025516,10]
[405995012,1771513843750,-500.0,0.00025516,10]
[405995013,1771513843848,-500.0,0.00025516,10]
[405995014,1771513843858,-500.0,0.00025516,10]
[405995015,1771513843867,-154.48464515,0.00025516,10]
[405995016,1771513843876,-500.0,0.00025516,10]
[405995017,1771513843885,-150.0,0.00025571,10]
[405995018,1771513843895,-500.0,0.00025571,10]
[405995019,1771513843904,-500.0,0.00025571,10]
[405995020,1771513843914,-500.0,0.00025571,10]
[405995022,1771513843923,-500.0,0.00025571,10]
[405995023,1771513843932,-500.0,0.00025571,10]
[405995024,1771513843942,-500.0,0.00025571,10]
[405995025,1771513843951,-150.0,0.00025626,10]
[405995026,1771513843960,-500.0,0.00025626,10]
[405995028,1771513843970,-500.0,0.00025626,10]
[405995029,1771513843979,-500.0,0.00025626,10]
[405995030,1771513843988,-500.0,0.00025626,10]
[405995031,1771513843997,-500.0,0.00025626,10]
[405995032,1771513844006,-500.0,0.00025626,10]
[405995033,1771513844015,-150.0,0.0002568,10]
[405995035,1771513844024,-500.0,0.0002568,10]
[405995037,1771513844033,-500.0,0.0002568,10]
[405995039,1771513844043,-500.0,0.0002568,10]
[405995040,1771513844053,-500.0,0.0002568,10]
[405995041,1771513844063,-500.0,0.0002568,10]
[405995042,1771513844073,-500.0,0.0002568,10]
[405995043,1771513844082,-284.06,0.000257,7]
[405995044,1771513844091,-319.0,0.00025729,2]
[405995045,1771513844102,-278.60589982,0.00025735,10]
[405995046,1771513844111,-500.0,0.00025735,10]
[405995047,1771513844119,-500.0,0.00025735,10]
[405995048,1771513844128,-500.0,0.00025735,10]
[405995049,1771513844138,-500.0,0.00025735,10]
[405995050,1771513844147,-500.0,0.00025735,10]
[405995051,1771513844157,-500.0,0.00025735,10]
[405995053,1771513844167,-409.08822859,0.0002579,10]
[405995055,1771513844176,-500.0,0.0002579,10]
[405995057,1771513844185,-328.32279397,0.0002579,10]
[405995059,1771513844195,-500.0,0.0002579,10]
[405995062,1771513844204,-500.0,0.0002579,10]
[405995064,1771513844213,-200.0,0.00025802,13]
[405995065,1771513844222,-500.0,0.00025845,10]
[405995066,1771513844232,-569.79716894,0.00025845,10]
[405995067,1771513844241,-500.0,0.00025845,10]
[405995068,1771513844251,-166.0,0.0002589,7]
[405995069,1771513844260,-318.0,0.00025893,2]
[405995070,1771513844270,-500.0,0.000259,10]
[405995071,1771513844279,-500.0,0.000259,10]
[405995072,1771513844288,-168.0,0.00025946,2]
[405995073,1771513844297,-500.0,0.00025954,10]
[405995074,1771513844306,-500.0,0.00025954,10]
[405995075,1771513844315,-151.0,0.00025995,13]
[405995076,1771513844325,-500.0,0.00026009,10]
[405995077,1771513844334,-500.0,0.00026009,10]
[405995078,1771513844344,-500.0,0.00026064,10]
[405995079,1771513844357,-500.0,0.00026064,10]
[405995080,1771513844368,-808.0,0.00026099,10]
[405995081,1771513844380,-490.0,0.00026099,10]
[405995082,1771513844389,-250.0,0.000261,10]
[405995083,1771513844399,-318.0,0.000261,7]
[405995084,1771513844410,-168.0,0.00026105,2]
[405995085,1771513844421,-500.0,0.00026119,10]
[405995086,1771513844432,-401.3475176,0.00026119,10]
[405995087,1771513844442,-500.0,0.00026174,10]
[405995088,1771513844451,-250.0,0.000262,10]
[405995089,1771513844461,-500.0,0.00026228,10]
[405995090,1771513844470,-500.0,0.00026283,10]
[405995091,1771513844479,-250.0,0.000263,10]
[405995092,1771513844488,-270.23195739,0.00026326,79]
[405995093,1771513844497,-168.0,0.00026333,2]
[405995094,1771513844507,-500.0,0.00026338,10]
[405995095,1771513844516,-500.0,0.00026393,10]
[405995096,1771513844525,-292.268525,0.000264,10]
[405995097,1771513844534,-500.0,0.00026448,10]
[405995098,1771513844544,-500.0,0.00026502,10]
[405995099,1771513844553,-294.2424755,0.00026557,10]
[405995100,1771513844564,-319.0,0.00026572,7]
[405995101,1771513844573,-611.4,0.000266,14]
[405995102,1771513844582,-318.0,0.0002666,2]
[405995103,1771513844591,-318.0,0.00026727,2]
[405995104,1771513844600,-319.0,0.00026816,2]
[405995105,1771513844609,-318.0,0.00026976,2]
[405995106,1771513844619,-999.99999901,0.00027,2]
[405995107,1771513844628,-3277.49,0.00027,2]
[405995108,1771513844638,-200.0,0.00027,120]
[405995109,1771513844647,-166.37,0.00027,7]
[405995110,1771513844658,-318.0,0.00027048,2]
[405995111,1771513844669,-1382.0,0.00027066,2]
[405995112,1771513844678,-635.0,0.00027066,2]
[405995113,1771513844688,-284.06,0.000271,7]
[405995114,1771513844697,-169.0,0.00027185,7]
[405995115,1771513844707,-1000.0,0.00027397,2]
[405995116,1771513844719,-1000.0,0.00027397,2]
[405995117,1771513844728,-1000.0,0.00027397,2]
[405995118,1771513844738,-1000.0,0.00027397,2]
[405995119,1771513844748,-1000.0,0.00027397,2]
[405995120,1771513844757,-1000.0,0.00027397,2]
[405995121,1771513844766,-1000.0,0.00027397,2]
[405995122,1771513844775,-1000.0,0.00027397,2]
[405995123,1771513844785,-1000.0,0.00027397,2]
[405995124,1771513844794,-1000.0,0.00027397,2]
[405995125,1771513844805,-201.06475275,0.00027472,120]
[405995126,1771513844818,-427.0,0.00027572,2]
[405995127,1771513844828,-427.0,0.00027572,2]
[405995128,1771513844837,-725.0,0.00027572,2]
[405995129,1771513844847,-181.0,0.00027572,2]
[405995130,1771513844856,-755.45689428,0.00027787,13]
[405995131,1771513844867,-714.0,0.00027914,3]
[405995132,1771513844877,-888.25,0.00027944,2]
[405995133,1771513844886,-151.0,0.00027982,17]
[405995134,1771513844895,-714.0,0.00028034,3]
[405995135,1771513844905,-210.89515,0.000282,120]
[405995136,1771513844914,-714.0,0.00028342,3]
[405995137,1771513844923,-402.0,0.00028342,3]
[405995138,1771513844932,-402.0,0.00028394,3]
[405995139,1771513844941,-270.23195739,0.00028472,94]
[405995140,1771513844951,-513.59678458,0.00028769,2]
[405995141,1771513844961,-1360.9137886,0.00028977,14]
[405995142,1771513844971,-200.0,0.00029264,21]
[405995143,1771513844981,-402.0,0.00029274,3]
[405995144,1771513844992,-166.37,0.000293,7]
[405995145,1771513845001,-402.0,0.00029358,3]
[405995146,1771513845011,-402.0,0.00029358,3]
[405995147,1771513845020,-284.06,0.000294,7]
[405995148,1771513845030,-402.0,0.00029674,3]
[405995149,1771513845038,-157.98538851,0.00029853,10]
[405995150,1771513845047,-155.58904004,0.00029853,10]
[405995151,1771513845056,-150.0,0.00029853,10]
[405995152,1771513845065,-500.0,0.00029853,10]
[405995153,1771513845075,-150.0,0.00029853,10]
[405995154,1771513845084,-500.0,0.00029853,10]
[405995155,1771513845093,-500.0,0.00029853,10]
[405995156,1771513845102,-199.72920304,0.00029908,10]
[405995157,1771513845112,-500.0,0.00029908,10]
[405995158,1771513845121,-150.0,0.00029908,10]
[405995159,1771513845131,-500.0,0.00029908,10]
[405995160,1771513845141,-500.0,0.00029908,10]
[405995161,1771513845151,-500.0,0.00029963,10]
[405995162,1771513845160,-150.0,0.00029963,10]
[405995163,1771513845169,-500.0,0.00029963,10]
[405995164,1771513845179,-500.0,0.00029963,10]
[405995165,1771513845189,-4138.01000028,0.0003,2]
[405995166,1771513845199,-1509.15,0.0003,30]
[405995167,1771513845210,-500.0,0.00030017,10]
[405995168,1771513845220,-500.0,0.00030017,10]
[405995169,1771513845229,-160.51801978,0.00030017,10]
[405995170,1771513845238,-178.5990801,0.00030017,10]
[405995171,1771513845248,-743.60641596,0.00030021,2]
[405995172,1771513845259,-1382.0,0.00030066,2]
[405995173,1771513845268,-635.0,0.00030066,2]
[405995174,1771513845277,-151.0,0.00030071,23]
[405995175,1771513845286,-500.0,0.00030072,10]
[405995176,1771513845295,-500.0,0.00030072,10]
[405995177,1771513845304,-3277.49,0.000301,2]
[405995178,1771513845313,-221.73181662,0.00030127,10]
[405995179,1771513845322,-500.0,0.00030127,10]
[405995180,1771513845331,-2000.0,0.00030137,2]
[405995181,1771513845341,-2000.0,0.00030137,2]
[405995182,1771513845354,-2000.0,0.00030137,2]